[Event "Championnat d'Europe Rapide"]
[Date "2024.12.07"]
[White "Fedoseev, Vladimir"]
[Black "Djukanovic, Mitar"]
[WhiteElo "2709"]
[BlackElo "1943"]
[Round "1.1"]
[Result "1-0"]
[TimeControl "900+10"]

1. e4 {[%emt 00:00:06] [%clk 00:15:14]} g6 {[%emt 00:00:08] [%clk 00:15:13]} 2.
d4 {[%emt 00:00:05] [%clk 00:15:18]} Bg7 {[%emt 00:00:06] [%clk 00:15:16]} 3.
Nf3 {[%emt 00:00:02] [%clk 00:15:26]} c6 {[%emt 00:00:05] [%clk 00:15:22]} 4. h3
{[%emt 00:00:39] [%clk 00:14:56]} d5 {[%emt 00:00:30] [%clk 00:15:03]} 5. exd5
{[%emt 00:00:02] [%clk 00:15:04]} cxd5 {[%emt 00:00:10] [%clk 00:15:03]} 6. c3
{[%emt 00:00:18] [%clk 00:14:55]} Nf6 {[%emt 00:00:20] [%clk 00:14:53]} 7. Bf4
{[%emt 00:00:02] [%clk 00:15:03]} O-O {[%emt 00:00:36] [%clk 00:14:28]} 8. Bd3
{[%emt 00:00:22] [%clk 00:14:50]} Nc6 {[%emt 00:00:56] [%clk 00:13:43]} 9. Qb3
{[%emt 00:01:22] [%clk 00:13:38]} Re8 {[%emt 00:01:34] [%clk 00:12:19]} 10. O-O
{[%emt 00:00:33] [%clk 00:13:15]} Nh5 {[%emt 00:01:00] [%clk 00:11:28]} 11. Bh2
{[%emt 00:01:24] [%clk 00:12:01]} e5 {[%emt 00:00:33] [%clk 00:11:05]} 12. dxe5
{[%emt 00:00:03] [%clk 00:12:08]} Nxe5 {[%emt 00:00:05] [%clk 00:11:10]} 13.
Bxe5 {[%emt 00:00:05] [%clk 00:12:13]} Bxe5 {[%emt 00:00:03] [%clk 00:11:17]}
14. Re1 {[%emt 00:00:32] [%clk 00:11:51]} Qd6 {[%emt 00:03:06] [%clk 00:08:22]}
15. Nbd2 {[%emt 00:01:02] [%clk 00:10:58]} Nf4 {[%emt 00:00:57] [%clk 00:07:35]}
16. Bf1 {[%emt 00:00:33] [%clk 00:10:34]} a5 {[%emt 00:02:14] [%clk 00:05:32]}
17. Rad1 {[%emt 00:02:28] [%clk 00:08:16]} a4 {[%emt 00:00:44] [%clk 00:04:59]}
18. Nc4 {[%emt 00:00:49] [%clk 00:07:36]} dxc4 {[%emt 00:01:46] [%clk 00:03:24]}
19. Qb5 {[%emt 00:01:22] [%clk 00:06:23]} Bd7 {[%emt 00:01:09] [%clk 00:02:26]}
20. Qxd7 {[%emt 00:00:03] [%clk 00:06:30]} Qf6 {[%emt 00:01:34] [%clk 00:01:02]}
21. Nxe5 {[%emt 00:04:55] [%clk 00:01:44]} Rxe5 {[%emt 00:00:13] [%clk
00:00:59]} 22. Rxe5 {[%emt 00:00:06] [%clk 00:01:48]} Qxe5 {[%emt 00:00:02]
[%clk 00:01:08]} 23. Bxc4 {[%emt 00:00:02] [%clk 00:01:56]} Rf8 {[%emt 00:00:45]
[%clk 00:00:32]} 24. Qxb7 {[%emt 00:00:05] [%clk 00:02:01]} a3 {[%emt 00:00:02]
[%clk 00:00:40]} 25. bxa3 {[%emt 00:00:17] [%clk 00:01:54]} Qxc3 {[%emt
00:00:02] [%clk 00:00:48]} 26. Qe4 {[%emt 00:00:04] [%clk 00:02:00]} g5 {[%emt
00:00:25] [%clk 00:00:35]} 27. a4 {[%emt 00:00:09] [%clk 00:02:00]} h6 {[%emt
00:00:28] [%clk 00:00:17]} 28. g3 {[%emt 00:00:21] [%clk 00:01:49]} Nxh3+ {[%emt
00:00:10] [%clk 00:00:17]} 29. Kg2 {[%emt 00:00:02] [%clk 00:01:57]} 1-0

[Site "Europe Echecs"]

[Event "Championnat d'Europe Rapide"]
[Date "2024.12.07"]
[White "Minas, Ioannis"]
[Black "Navara, David"]
[WhiteElo "1987"]
[BlackElo "2665"]
[Round "1.2"]
[Result "0-1"]
[TimeControl "900+10"]

1. e4 {[%emt 00:00:03] [%clk 00:15:17]} c5 {[%emt 00:00:02] [%clk 00:15:19]} 2.
c3 {[%emt 00:00:06] [%clk 00:15:21]} Nf6 {[%emt 00:00:02] [%clk 00:15:26]} 3. e5
{[%emt 00:00:03] [%clk 00:15:29]} Nd5 {[%emt 00:00:02] [%clk 00:15:34]} 4. d4
{[%emt 00:00:01] [%clk 00:15:37]} cxd4 {[%emt 00:00:04] [%clk 00:15:40]} 5. Nf3
{[%emt 00:00:02] [%clk 00:15:46]} Nc6 {[%emt 00:00:03] [%clk 00:15:47]} 6. cxd4
{[%emt 00:00:17] [%clk 00:15:39]} d6 {[%emt 00:00:09] [%clk 00:15:48]} 7. Bc4
{[%emt 00:00:24] [%clk 00:15:26]} dxe5 {[%emt 00:00:30] [%clk 00:15:27]} 8. dxe5
{[%emt 00:00:20] [%clk 00:15:15]} Ndb4 {[%emt 00:00:12] [%clk 00:15:25]} 9. Qe2
{[%emt 00:02:11] [%clk 00:13:15]} Bf5 {[%emt 00:01:21] [%clk 00:14:13]} 10. Na3
{[%emt 00:02:08] [%clk 00:11:17]} Nd3+ {[%emt 00:01:34] [%clk 00:12:50]} 11. Kf1
{[%emt 00:00:03] [%clk 00:11:24]} Nxc1 {[%emt 00:00:29] [%clk 00:12:30]} 12.
Rxc1 {[%emt 00:00:05] [%clk 00:11:30]} e6 {[%emt 00:00:10] [%clk 00:12:30]} 13.
Qe3 {[%emt 00:04:07] [%clk 00:07:33]} a6 {[%emt 00:01:37] [%clk 00:11:03]} 14.
Ke2 {[%emt 00:01:16] [%clk 00:06:27]} Qa5 {[%emt 00:00:32] [%clk 00:10:41]} 15.
Rhd1 {[%emt 00:00:22] [%clk 00:06:15]} Bc5 {[%emt 00:00:23] [%clk 00:10:27]} 16.
Qg5 {[%emt 00:01:02] [%clk 00:05:23]} O-O {[%emt 00:00:16] [%clk 00:10:21]} 17.
Bb3 {[%emt 00:00:27] [%clk 00:05:06]} Bxa3 {[%emt 00:02:00] [%clk 00:08:31]} 18.
bxa3 {[%emt 00:00:02] [%clk 00:05:15]} Nxe5 {[%emt 00:00:02] [%clk 00:08:39]}
19. Nd4 {[%emt 00:01:12] [%clk 00:04:13]} Nd3 {[%emt 00:00:11] [%clk 00:08:37]}
20. Rb1 {[%emt 00:01:29] [%clk 00:02:54]} Qe5+ {[%emt 00:00:04] [%clk 00:08:43]}
21. Qe3 {[%emt 00:00:09] [%clk 00:02:55]} Nf4+ {[%emt 00:00:03] [%clk 00:08:49]}
22. Kf3 {[%emt 00:01:02] [%clk 00:02:04]} Qxe3+ {[%emt 00:00:10] [%clk
00:08:48]} 23. fxe3 {[%emt 00:00:04] [%clk 00:02:10]} Bxb1 {[%emt 00:00:04]
[%clk 00:08:55]} 24. Rxb1 {[%emt 00:00:05] [%clk 00:02:15]} Nd3 {[%emt 00:00:15]
[%clk 00:08:50]} 25. Bc4 {[%emt 00:00:33] [%clk 00:01:52]} Ne5+ {[%emt 00:00:02]
[%clk 00:08:58]} 0-1

[Site "Europe Echecs"]

[Event "Championnat d'Europe Rapide"]
[Date "2024.12.07"]
[White "Santos Latasa, Jaime"]
[Black "Martins, Diogo Faria Oliveira"]
[WhiteElo "2628"]
[BlackElo "1961"]
[Round "1.3"]
[Result "1-0"]
[TimeControl "900+10"]

1. d4 {[%emt 00:00:04] [%clk 00:15:18]} Nf6 {[%clk 00:15:18]} 2. c4 {[%emt
00:00:02] [%clk 00:15:26]} c5 {[%emt 00:00:14] [%clk 00:15:13]} 3. d5 {[%emt
00:00:04] [%clk 00:15:32]} e6 {[%emt 00:00:02] [%clk 00:15:21]} 4. Nc3 {[%emt
00:00:01] [%clk 00:15:41]} exd5 {[%emt 00:00:02] [%clk 00:15:29]} 5. cxd5 {[%emt
00:00:02] [%clk 00:15:49]} d6 {[%emt 00:00:01] [%clk 00:15:38]} 6. Nf3 {[%emt
00:00:07] [%clk 00:15:53]} g6 {[%emt 00:00:01] [%clk 00:15:46]} 7. Nd2 {[%emt
00:00:02] [%clk 00:16:02]} Bg7 {[%emt 00:00:03] [%clk 00:15:53]} 8. e4 {[%emt
00:00:01] [%clk 00:16:10]} O-O {[%emt 00:00:06] [%clk 00:15:57]} 9. Be2 {[%emt
00:00:03] [%clk 00:16:17]} a6 {[%emt 00:00:37] [%clk 00:15:31]} 10. a4 {[%emt
00:00:01] [%clk 00:16:26]} Nbd7 {[%emt 00:00:04] [%clk 00:15:36]} 11. O-O {[%emt
00:00:03] [%clk 00:16:32]} Rb8 {[%emt 00:00:08] [%clk 00:15:39]} 12. h3 {[%emt
00:00:15] [%clk 00:16:27]} Qc7 {[%emt 00:01:51] [%clk 00:13:58]} 13. Qc2 {[%emt
00:01:06] [%clk 00:15:32]} Re8 {[%emt 00:00:18] [%clk 00:13:49]} 14. Re1 {[%emt
00:00:54] [%clk 00:14:48]} c4 {[%emt 00:02:40] [%clk 00:11:20]} 15. a5 {[%emt
00:00:38] [%clk 00:14:20]} b5 {[%emt 00:00:19] [%clk 00:11:10]} 16. axb6 {[%emt
00:00:02] [%clk 00:14:29]} Nxb6 {[%emt 00:00:11] [%clk 00:11:08]} 17. Nf3 {[%emt
00:00:44] [%clk 00:13:54]} Nfd7 {[%emt 00:00:14] [%clk 00:11:05]} 18. Be3 {[%emt
00:00:13] [%clk 00:13:51]} Ne5 {[%emt 00:00:12] [%clk 00:11:04]} 19. Nd2 {[%emt
00:00:49] [%clk 00:13:12]} Nbd7 {[%emt 00:00:10] [%clk 00:11:04]} 20. Na4 {[%emt
00:00:30] [%clk 00:12:51]} Nc5 {[%emt 00:02:16] [%clk 00:08:58]} 21. Nxc5 {[%emt
00:00:26] [%clk 00:12:35]} dxc5 {[%emt 00:00:02] [%clk 00:09:06]} 22. Reb1
{[%emt 00:01:26] [%clk 00:11:20]} Bd7 {[%emt 00:01:03] [%clk 00:08:12]} 23. Rxa6
{[%emt 00:00:51] [%clk 00:10:39]} Bb5 {[%emt 00:00:17] [%clk 00:08:05]} 24. Ra3
{[%emt 00:00:02] [%clk 00:10:48]} Nd3 {[%emt 00:02:00] [%clk 00:06:14]} 25. Nxc4
{[%emt 00:00:20] [%clk 00:10:39]} Bxc4 {[%emt 00:00:28] [%clk 00:05:56]} 26.
Bxd3 {[%emt 00:00:30] [%clk 00:10:19]} Bxd3 {[%emt 00:00:10] [%clk 00:05:55]}
27. Qxd3 {[%emt 00:00:30] [%clk 00:09:59]} Rxb2 {[%emt 00:01:20] [%clk
00:04:46]} 28. Rxb2 {[%emt 00:00:10] [%clk 00:09:58]} Bxb2 {[%emt 00:00:02]
[%clk 00:04:54]} 29. Ra4 {[%emt 00:00:03] [%clk 00:10:05]} Rc8 {[%emt 00:02:10]
[%clk 00:02:54]} 30. Rc4 {[%emt 00:00:15] [%clk 00:10:00]} Qa7 {[%emt 00:00:36]
[%clk 00:02:28]} 31. d6 {[%emt 00:01:26] [%clk 00:08:44]} Qa1+ {[%emt 00:00:38]
[%clk 00:02:00]} 32. Kh2 {[%emt 00:00:08] [%clk 00:08:46]} Qa6 {[%emt 00:00:45]
[%clk 00:01:25]} 33. f4 {[%emt 00:01:08] [%clk 00:07:48]} Rd8 {[%emt 00:00:19]
[%clk 00:01:16]} 34. e5 {[%emt 00:00:17] [%clk 00:07:41]} f6 {[%emt 00:00:10]
[%clk 00:01:16]} 35. Qd5+ {[%emt 00:00:05] [%clk 00:07:46]} Kg7 {[%emt 00:00:10]
[%clk 00:01:15]} 36. Rxc5 {[%emt 00:00:05] [%clk 00:07:52]} Qe2 {[%emt 00:00:29]
[%clk 00:00:56]} 37. Rc7+ {[%emt 00:00:22] [%clk 00:07:40]} Kh6 {[%emt 00:00:05]
[%clk 00:01:01]} 38. Qf7 {[%emt 00:00:07] [%clk 00:07:43]} 1-0

[Site "Europe Echecs"]

[Event "Championnat d'Europe Rapide"]
[Date "2024.12.07"]
[White "Van Foreest, Jorden"]
[Black "Horvath, Tomas"]
[WhiteElo "2677"]
[BlackElo "2049"]
[Round "1.5"]
[Result "1-0"]
[TimeControl "900+10"]

1. d4 {[%emt 00:02:35] [%clk 00:12:42]} Nf6 {[%emt 00:00:05] [%clk 00:15:15]} 2.
c4 {[%emt 00:00:03] [%clk 00:12:48]} e6 {[%emt 00:00:03] [%clk 00:15:22]} 3. Nc3
{[%emt 00:00:03] [%clk 00:12:56]} Bb4 {[%emt 00:00:03] [%clk 00:15:29]} 4. e3
{[%emt 00:00:03] [%clk 00:13:03]} O-O {[%emt 00:00:50] [%clk 00:14:49]} 5. Nge2
{[%emt 00:00:05] [%clk 00:13:07]} d5 {[%emt 00:00:30] [%clk 00:14:30]} 6. a3
{[%emt 00:00:02] [%clk 00:13:15]} Be7 {[%emt 00:00:53] [%clk 00:13:47]} 7. cxd5
{[%emt 00:00:02] [%clk 00:13:22]} exd5 {[%emt 00:00:06] [%clk 00:13:52]} 8. Nf4
{[%emt 00:00:22] [%clk 00:13:10]} c6 {[%emt 00:00:53] [%clk 00:13:10]} 9. Bd3
{[%emt 00:00:04] [%clk 00:13:14]} Na6 {[%emt 00:01:56] [%clk 00:11:25]} 10. Qc2
{[%emt 00:00:09] [%clk 00:13:15]} Nc7 {[%emt 00:00:39] [%clk 00:10:57]} 11. Bd2
{[%emt 00:00:01] [%clk 00:13:23]} Ne6 {[%emt 00:00:30] [%clk 00:10:37]} 12. Nxe6
{[%emt 00:00:25] [%clk 00:13:07]} Bxe6 {[%emt 00:00:13] [%clk 00:10:35]} 13. Ne2
{[%emt 00:00:01] [%clk 00:13:14]} Rc8 {[%emt 00:00:21] [%clk 00:10:26]} 14. b4
{[%emt 00:00:02] [%clk 00:13:22]} b6 {[%emt 00:00:20] [%clk 00:10:16]} 15. O-O
{[%emt 00:01:03] [%clk 00:12:28]} c5 {[%emt 00:00:53] [%clk 00:09:35]} 16. bxc5
{[%emt 00:00:07] [%clk 00:12:30]} bxc5 {[%emt 00:00:02] [%clk 00:09:43]} 17. Ba6
{[%emt 00:00:17] [%clk 00:12:23]} Rb8 {[%emt 00:02:16] [%clk 00:07:37]} 18. dxc5
{[%emt 00:00:03] [%clk 00:12:30]} Qc7 {[%emt 00:00:11] [%clk 00:07:36]} 19. Rac1
{[%emt 00:01:20] [%clk 00:11:20]} Ng4 {[%emt 00:00:24] [%clk 00:07:22]} 20. g3
{[%emt 00:00:10] [%clk 00:11:20]} Ne5 {[%emt 00:00:16] [%clk 00:07:16]} 21. Nd4
{[%emt 00:00:01] [%clk 00:11:29]} Bg4 {[%emt 00:01:27] [%clk 00:05:59]} 22. f3
{[%emt 00:00:11] [%clk 00:11:28]} Bh3 {[%emt 00:00:05] [%clk 00:06:05]} 23. Rfd1
{[%emt 00:00:20] [%clk 00:11:17]} Nc6 {[%emt 00:00:39] [%clk 00:05:35]} 24. Bd3
{[%emt 00:00:57] [%clk 00:10:30]} g6 {[%emt 00:00:22] [%clk 00:05:23]} 25. Qa4
{[%emt 00:01:07] [%clk 00:09:33]} Ne5 {[%emt 00:00:53] [%clk 00:04:41]} 26. Ba5
{[%emt 00:02:23] [%clk 00:07:20]} Qc8 {[%emt 00:00:42] [%clk 00:04:09]} 27. c6
{[%emt 00:00:46] [%clk 00:06:44]} Rb2 {[%emt 00:00:08] [%clk 00:04:12]} 28. Bc2
{[%emt 00:00:32] [%clk 00:06:21]} Bc5 {[%emt 00:00:46] [%clk 00:03:36]} 29. Kf2
{[%emt 00:00:36] [%clk 00:05:54]} Qa6 {[%emt 00:00:57] [%clk 00:02:50]} 30. Ne2
{[%emt 00:03:36] [%clk 00:02:28]} Bxe3+ {[%emt 00:00:42] [%clk 00:02:18]} 31.
Kxe3 {[%emt 00:00:05] [%clk 00:02:33]} Nc4+ {[%emt 00:00:01] [%clk 00:02:27]}
32. Kf2 {[%emt 00:00:03] [%clk 00:02:40]} Qxa5 {[%emt 00:00:10] [%clk 00:02:28]}
33. Qxa5 {[%emt 00:00:05] [%clk 00:02:45]} Nxa5 {[%clk 00:02:36]} 34. g4 {[%emt
00:00:21] [%clk 00:02:33]} Re8 {[%emt 00:00:37] [%clk 00:02:10]} 35. Nd4 {[%emt
00:00:03] [%clk 00:02:40]} Nc4 {[%emt 00:00:10] [%clk 00:02:11]} 36. Kg3 {[%emt
00:00:15] [%clk 00:02:34]} h5 {[%emt 00:00:57] [%clk 00:01:24]} 37. Kxh3 {[%emt
00:00:07] [%clk 00:02:37]} hxg4+ {[%emt 00:00:01] [%clk 00:01:33]} 38. Kxg4
{[%emt 00:00:05] [%clk 00:02:42]} Ne3+ {[%emt 00:00:06] [%clk 00:01:37]} 39. Kf4
{[%emt 00:00:03] [%clk 00:02:48]} Nxd1 {[%emt 00:00:08] [%clk 00:01:39]} 40.
Rxd1 {[%emt 00:00:15] [%clk 00:02:44]} Kg7 {[%emt 00:00:18] [%clk 00:01:32]} 41.
Rd3 {[%emt 00:00:07] [%clk 00:02:45]} Rc8 {[%emt 00:00:17] [%clk 00:01:26]} 42.
Ke5 {[%emt 00:00:13] [%clk 00:02:42]} Rxc2 {[%emt 00:00:54] [%clk 00:00:42]} 43.
Nxc2 {[%emt 00:00:02] [%clk 00:02:50]} Rxc6 {[%emt 00:00:01] [%clk 00:00:51]}
44. Nd4 {[%emt 00:00:07] [%clk 00:02:52]} Rc5 {[%emt 00:00:06] [%clk 00:00:56]}
45. Kd6 {[%emt 00:00:02] [%clk 00:03:00]} Rc1 {[%emt 00:00:11] [%clk 00:00:56]}
46. Nc6 {[%emt 00:00:04] [%clk 00:03:05]} 1-0

[Site "Europe Echecs"]

[Event "Championnat d'Europe Rapide"]
[Date "2024.12.07"]
[White "Zhukovskyi, Myhaylo"]
[Black "Deac, Bogdan-Daniel"]
[WhiteElo "2189"]
[BlackElo "2696"]
[Round "1.6"]
[Result "0-1"]
[TimeControl "900+10"]

1. Nf3 {[%emt 00:00:04] [%clk 00:15:17]} b6 {[%emt 00:00:13] [%clk 00:15:05]} 2.
g3 {[%emt 00:00:02] [%clk 00:15:25]} Bb7 {[%emt 00:00:09] [%clk 00:15:07]} 3.
Bg2 {[%emt 00:00:02] [%clk 00:15:33]} g6 {[%emt 00:00:02] [%clk 00:15:14]} 4.
O-O {[%emt 00:00:06] [%clk 00:15:38]} Bg7 {[%emt 00:00:04] [%clk 00:15:20]} 5.
d4 {[%emt 00:02:26] [%clk 00:13:22]} c5 {[%emt 00:00:23] [%clk 00:15:06]} 6.
dxc5 {[%emt 00:02:04] [%clk 00:11:28]} bxc5 {[%emt 00:00:03] [%clk 00:15:13]} 7.
c4 {[%emt 00:00:08] [%clk 00:11:31]} Nf6 {[%emt 00:00:17] [%clk 00:15:06]} 8.
Nc3 {[%emt 00:00:05] [%clk 00:11:35]} O-O {[%emt 00:00:03] [%clk 00:15:12]} 9.
Qc2 {[%emt 00:00:51] [%clk 00:10:55]} Nc6 {[%emt 00:00:50] [%clk 00:14:32]} 10.
Rd1 {[%emt 00:01:04] [%clk 00:10:01]} d6 {[%emt 00:00:08] [%clk 00:14:34]} 11.
a3 {[%emt 00:03:48] [%clk 00:06:25]} Rb8 {[%emt 00:00:36] [%clk 00:14:06]} 12.
Rb1 {[%emt 00:00:37] [%clk 00:05:58]} a5 {[%emt 00:00:02] [%clk 00:14:14]} 13.
Be3 {[%emt 00:00:12] [%clk 00:05:56]} Qc8 {[%emt 00:00:36] [%clk 00:13:48]} 14.
h3 {[%emt 00:01:34] [%clk 00:04:32]} Ba6 {[%emt 00:00:16] [%clk 00:13:42]} 15.
b3 {[%emt 00:00:39] [%clk 00:04:04]} Re8 {[%clk 00:13:51]} 16. Na4 {[%emt
00:01:06] [%clk 00:03:09]} Qc7 {[%emt 00:01:23] [%clk 00:12:37]} 17. Bd2 {[%emt
00:00:18] [%clk 00:03:01]} e5 {[%emt 00:01:23] [%clk 00:11:24]} 18. e3 {[%emt
00:01:08] [%clk 00:02:04]} h6 {[%emt 00:01:53] [%clk 00:09:40]} 19. Bc3 {[%emt
00:00:16] [%clk 00:01:58]} Bc8 {[%emt 00:00:22] [%clk 00:09:27]} 20. Nh4 {[%emt
00:01:44] [%clk 00:00:25]} Rd8 {[%emt 00:00:59] [%clk 00:08:38]} 21. Bxc6 {[%emt
00:00:14] [%clk 00:00:22]} Qxc6 {[%emt 00:00:02] [%clk 00:08:46]} 22. Bxa5
{[%emt 00:00:01] [%clk 00:00:30]} Bb7 {[%emt 00:00:52] [%clk 00:08:04]} 23. f3
{[%emt 00:00:19] [%clk 00:00:22]} g5 {[%emt 00:01:43] [%clk 00:06:31]} 24. Bxd8
{[%emt 00:00:10] [%clk 00:00:22]} gxh4 {[%emt 00:00:08] [%clk 00:06:32]} 25.
Bxf6 {[%emt 00:00:12] [%clk 00:00:21]} Qxf3 {[%emt 00:00:02] [%clk 00:06:39]}
26. Qd2 {[%emt 00:00:21] [%clk 00:00:11]} hxg3 {[%emt 00:00:53] [%clk 00:05:56]}
27. e4 {[%emt 00:00:10] [%clk 00:00:11]} Bxe4 {[%emt 00:00:04] [%clk 00:06:02]}
0-1

[Site "Europe Echecs"]

[Event "Championnat d'Europe Rapide"]
[Date "2024.12.07"]
[White "Motylev, Alexander"]
[Black "Velickovski-Nejkovic, Maja"]
[WhiteElo "2596"]
[BlackElo "1959"]
[Round "1.7"]
[Result "1-0"]
[TimeControl "900+10"]

1. e4 {[%emt 00:00:05] [%clk 00:15:17]} d6 {[%emt 00:01:49] [%clk 00:13:30]} 2.
d4 {[%clk 00:15:22]} Nf6 {[%clk 00:13:30]} 3. Nc3 {[%clk 00:15:22]} Nbd7 {[%clk
00:13:30]} 4. g4 {[%clk 00:15:22]} h6 {[%clk 00:13:30]} 5. h3 {[%emt 00:01:11]
[%clk 00:14:49]} e5 {[%emt 00:00:02] [%clk 00:14:05]} 6. Nge2 {[%emt 00:00:25]
[%clk 00:14:33]} c6 {[%emt 00:00:03] [%clk 00:14:13]} 7. a4 {[%emt 00:00:03]
[%clk 00:14:40]} Qc7 {[%emt 00:00:03] [%clk 00:14:20]} 8. Bg2 {[%emt 00:00:01]
[%clk 00:14:48]} Be7 {[%emt 00:00:02] [%clk 00:14:29]} 9. f4 {[%emt 00:00:39]
[%clk 00:14:19]} O-O {[%emt 00:00:07] [%clk 00:14:33]} 10. O-O {[%emt 00:00:46]
[%clk 00:13:42]} b6 {[%emt 00:00:07] [%clk 00:14:36]} 11. d5 {[%emt 00:01:12]
[%clk 00:12:40]} c5 {[%emt 00:00:05] [%clk 00:14:42]} 12. g5 {[%emt 00:00:43]
[%clk 00:12:07]} hxg5 {[%emt 00:00:06] [%clk 00:14:47]} 13. fxg5 {[%clk
00:12:16]} Nh7 {[%emt 00:00:02] [%clk 00:14:55]} 14. h4 {[%emt 00:00:05] [%clk
00:12:20]} a6 {[%emt 00:00:18] [%clk 00:14:48]} 15. Ng3 {[%emt 00:00:08] [%clk
00:12:22]} g6 {[%emt 00:00:06] [%clk 00:14:52]} 16. Be3 {[%emt 00:00:58] [%clk
00:11:33]} Rb8 {[%emt 00:00:03] [%clk 00:15:01]} 17. Nf5 {[%emt 00:00:03] [%clk
00:11:40]} Qd8 {[%emt 00:00:03] [%clk 00:15:06]} 18. Qe2 {[%emt 00:02:16] [%clk
00:09:34]} b5 {[%emt 00:00:08] [%clk 00:15:09]} 19. Nh6+ {[%emt 00:00:45] [%clk
00:08:59]} Kg7 {[%emt 00:00:06] [%clk 00:15:12]} 20. axb5 {[%emt 00:00:02] [%clk
00:09:07]} axb5 {[%emt 00:00:01] [%clk 00:15:21]} 21. Nxb5 {[%emt 00:00:13]
[%clk 00:09:04]} Nb6 {[%emt 00:00:02] [%clk 00:15:29]} 22. Na7 {[%emt 00:02:45]
[%clk 00:06:29]} Bd7 {[%emt 00:00:04] [%clk 00:15:35]} 23. Nc6 {[%emt 00:00:05]
[%clk 00:06:35]} Bxc6 {[%emt 00:00:05] [%clk 00:15:39]} 24. dxc6 {[%emt
00:00:01] [%clk 00:06:44]} Qc7 {[%emt 00:00:03] [%clk 00:15:46]} 25. Rf3 {[%emt
00:00:06] [%clk 00:06:47]} Qxc6 {[%emt 00:00:05] [%clk 00:15:52]} 26. Raf1
{[%clk 00:06:56]} f6 {[%emt 00:00:18] [%clk 00:15:45]} 27. h5 {[%emt 00:00:39]
[%clk 00:06:27]} Nxg5 {[%emt 00:00:16] [%clk 00:15:39]} 28. hxg6 {[%emt
00:00:05] [%clk 00:06:31]} Nxf3+ {[%emt 00:00:23] [%clk 00:15:27]} 29. Qxf3
{[%emt 00:00:07] [%clk 00:06:34]} Rh8 {[%emt 00:00:28] [%clk 00:15:09]} 30. Nf5+
{[%emt 00:00:03] [%clk 00:06:40]} Kf8 {[%emt 00:00:24] [%clk 00:14:56]} 31. g7+
{[%emt 00:00:13] [%clk 00:06:37]} Kf7 {[%emt 00:00:05] [%clk 00:15:01]} 32.
gxh8=Q {[%emt 00:00:10] [%clk 00:06:37]} Rxh8 {[%emt 00:00:16] [%clk 00:14:55]}
33. Nxe7 {[%emt 00:00:02]} 1-0

[Site "Europe Echecs"]